[Event "7° Rencontres Internationales des Echecs Francophones"]
[Site "PARIS, France"]
[Date "2019.08.10"]
[Round "10.1"]
[White "Gurevich, Mikhail"]
[Black "David, Alberto"]
[Result "1-0"]
[TimeControl "90'+30' + 30seconds/move"]
[WhiteElo "2559"]
[BlackElo "2554"]

1. c4 {[%clk 00:05:04]} {[%emt 00:00:01]} e5 {[%clk 00:05:04]} {[%emt
00:00:04]} 2. Nc3 {[%clk 00:05:06]} Nf6 {[%clk 00:05:04]} {[%emt 00:00:02]} 3.
Nf3 {[%clk 00:05:07]} {[%emt 00:00:01]} Nc6 {[%clk 00:05:05]} {[%emt 00:00:02]}
4. a3 {[%clk 00:05:09]} {[%emt 00:00:02]} g6 {[%clk 00:04:57]} {[%emt
00:00:11]} 5. g3 {[%clk 00:05:09]} {[%emt 00:00:02]} Bg7 {[%clk 00:04:57]}
{[%emt 00:00:03]} 6. Bg2 {[%clk 00:05:11]} {[%emt 00:00:01]} O-O {[%clk
00:04:57]} {[%emt 00:00:04]} 7. d3 {[%clk 00:04:56]} {[%emt 00:00:18]} h6
{[%clk 00:04:50]} {[%emt 00:00:09]} 8. O-O {[%clk 00:04:53]} {[%emt 00:00:06]}
d6 {[%clk 00:04:51]} {[%emt 00:00:03]} 9. Rb1 {[%clk 00:04:48]} {[%emt
00:00:08]} Be6 {[%clk 00:04:49]} {[%emt 00:00:04]} 10. b4 {[%clk 00:04:47]}
{[%emt 00:00:05]} a6 {[%clk 00:04:30]} {[%emt 00:00:22]} 11. a4 {[%clk
00:04:29]} {[%emt 00:00:21]} Qd7 {[%clk 00:04:29]} {[%emt 00:00:04]} 12. b5
{[%clk 00:04:27]} {[%emt 00:00:06]} axb5 {[%clk 00:04:30]} {[%emt 00:00:02]} 13.
axb5 {[%clk 00:04:29]} {[%emt 00:00:01]} Ne7 {[%clk 00:04:31]} {[%emt
00:00:01]} 14. Bb2 {[%clk 00:04:20]} {[%emt 00:00:12]} Bh3 {[%clk 00:04:25]}
{[%emt 00:00:08]} 15. Ra1 {[%clk 00:04:18]} {[%emt 00:00:06]} Bxg2 {[%clk
00:04:24]} {[%emt 00:00:05]} 16. Kxg2 {[%clk 00:04:19]} {[%emt 00:00:01]} Nf5
{[%clk 00:04:02]} {[%emt 00:00:25]} 17. e4 {[%clk 00:04:08]} {[%emt 00:00:15]}
Ne7 {[%clk 00:03:44]} {[%emt 00:00:21]} 18. Rxa8 {[%clk 00:03:52]} {[%emt
00:00:19]} Rxa8 {[%clk 00:03:45]} {[%emt 00:00:01]} 19. Qb3 {[%clk 00:03:53]}
{[%emt 00:00:02]} Qc8 {[%clk 00:03:24]} {[%emt 00:00:24]} 20. Ra1 {[%clk
00:03:51]} {[%emt 00:00:05]} Nd7 {[%clk 00:03:19]} {[%emt 00:00:09]} 21. Ra3
{[%clk 00:03:48]} {[%emt 00:00:06]} Nc5 {[%clk 00:03:13]} {[%emt 00:00:09]} 22.
Qc2 {[%clk 00:03:48]} {[%emt 00:00:01]} c6 {[%clk 00:03:05]} {[%emt 00:00:12]}
23. Bc1 {[%clk 00:03:32]} {[%emt 00:00:19]} Ne6 {[%clk 00:02:51]} {[%emt
00:00:17]} 24. Qa2 {[%clk 00:03:25]} {[%emt 00:00:10]} Rxa3 {[%clk 00:02:27]}
{[%emt 00:00:27]} 25. Qxa3 {[%clk 00:03:24]} {[%emt 00:00:04]} Qb8 {[%clk
00:02:26]} {[%emt 00:00:05]} 26. Be3 {[%clk 00:03:13]} {[%emt 00:00:14]} Bf8
{[%clk 00:01:58]} {[%emt 00:00:31]} 27. Qa5 {[%clk 00:03:05]} {[%emt 00:00:11]}
Qd8 {[%clk 00:00:58]} {[%emt 00:01:03]} 28. Qxd8 {[%clk 00:02:25]} {[%emt
00:00:44]} Nxd8 {[%clk 00:01:00]} {[%emt 00:00:01]} 29. Nd2 {[%clk 00:02:26]}
{[%emt 00:00:02]} Nc8 {[%clk 00:00:31]} {[%emt 00:00:32]} 30. Nb3 {[%clk
00:02:25]} {[%emt 00:00:03]} f5 {[%clk 00:00:19]} {[%emt 00:00:16]} 31. f3
{[%clk 00:02:27]} {[%emt 00:00:01]} Kf7 {[%clk 00:00:21]} 32. Kf1 {[%clk
00:02:16]} {[%emt 00:00:14]} Ke6 {[%clk 00:00:21]} {[%emt 00:00:03]} 33. Ke2
{[%clk 00:02:17]} {[%emt 00:00:02]} g5 {[%clk 00:00:21]} {[%emt 00:00:04]} 34.
d4 {[%clk 00:01:46]} {[%emt 00:00:34]} f4 {[%clk 00:00:09]} {[%emt 00:00:15]}
35. gxf4 {[%clk 00:01:37]} {[%emt 00:00:12]} exf4 {[%clk 00:00:11]} 36. Bf2
{[%clk 00:01:37]} {[%emt 00:00:02]} Bg7 {[%clk 00:00:12]} {[%emt 00:00:02]} 37.
Kd3 {[%clk 00:01:34]} {[%emt 00:00:06]} Kd7 {[%clk 00:00:14]} {[%emt 00:00:01]}
38. Na4 {[%clk 00:01:09]} {[%emt 00:00:28]} Nf7 {[%clk 00:00:14]} {[%emt
00:00:03]} 39. Na5 {[%clk 00:00:58]} {[%emt 00:00:14]} Kc7 {[%clk 00:00:10]}
{[%emt 00:00:08]} 40. Nc3 {[%clk 00:00:51]} {[%emt 00:00:10]} Kb6 {[%clk
00:00:08]} {[%emt 00:00:06]} 41. Nb3 {[%clk 00:00:51]} {[%emt 00:00:02]} Kc7
{[%clk 00:00:10]} 42. h3 {[%clk 00:00:50]} {[%emt 00:00:03]} Ne7 {[%clk
00:00:12]} {[%emt 00:00:02]} 43. Be1 {[%clk 00:00:48]} {[%emt 00:00:05]} c5
{[%clk 00:00:14]} 44. dxc5 {[%clk 00:00:32]} {[%emt 00:00:20]} Ne5+ {[%clk
00:00:16]} {[%emt 00:00:01]} 45. Ke2 {[%clk 00:00:34]} Nxc4 {[%clk 00:00:17]}
{[%emt 00:00:02]} 46. Nd5+ {[%clk 00:00:28]} {[%emt 00:00:09]} Nxd5 {[%clk
00:00:18]} {[%emt 00:00:02]} 47. exd5 {[%clk 00:00:30]} {[%emt 00:00:01]} dxc5
{[%clk 00:00:18]} {[%emt 00:00:03]} 48. Nxc5 {[%clk 00:00:31]} {[%emt
00:00:02]} Kb6 {[%clk 00:00:12]} {[%emt 00:00:09]} 49. Bf2 {[%clk 00:00:31]}
{[%emt 00:00:03]} Kxb5 {[%clk 00:00:13]} {[%emt 00:00:02]} 50. Nxb7 {[%clk
00:00:32]} Ne5 {[%clk 00:00:10]} {[%emt 00:00:06]} 51. Nd6+ {[%clk 00:00:30]}
{[%emt 00:00:05]} Kb4 {[%clk 00:00:10]} {[%emt 00:00:03]} 52. Bd4 {[%clk
00:00:27]} {[%emt 00:00:07]} Bf6 {[%clk 00:00:06]} {[%emt 00:00:07]} 53. Ne4
{[%clk 00:00:25]} {[%emt 00:00:06]} Kc4 {[%clk 00:00:06]} {[%emt 00:00:03]} 54.
Ba1 {[%clk 00:00:23]} {[%emt 00:00:04]} Bh8 {[%clk 00:00:05]} {[%emt 00:00:04]}
55. d6 {[%clk 00:00:25]} {[%emt 00:00:01]} Nf7 {[%clk 00:00:07]} 56. Bxh8
{[%clk 00:00:26]} {[%emt 00:00:03]} Nxh8 {[%clk 00:00:09]} 57. d7 {[%clk
00:00:28]} Kd5 {[%emt 00:00:16]} 1-0

[Event "7° Rencontres Internationales des Echecs Francophones"]
[Site "PARIS, France"]
[Date "2019.08.10"]
[Round "10.3"]
[White "Piscopo, Pierluigi"]
[Black "Dardha, Daniel"]
[Result "0-1"]
[TimeControl "90'+30' + 30seconds/move"]
[WhiteElo "2417"]
[BlackElo "2390"]

1. e4 {[%clk 00:05:05]} {[%emt 00:00:01]} c5 {[%clk 00:05:05]} {[%emt
00:00:03]} 2. Nf3 {[%clk 00:05:06]} Nc6 {[%clk 00:05:07]} 3. Bb5 {[%clk
00:05:08]} g6 {[%clk 00:05:09]} 4. c3 {[%clk 00:05:08]} {[%emt 00:00:03]} Qb6
{[%clk 00:05:03]} {[%emt 00:00:10]} 5. Ba4 {[%clk 00:05:06]} {[%emt 00:00:06]}
Bg7 {[%clk 00:04:55]} {[%emt 00:00:10]} 6. O-O {[%clk 00:05:06]} {[%emt
00:00:03]} e5 {[%clk 00:04:52]} {[%emt 00:00:07]} 7. a3 {[%clk 00:04:21]}
{[%emt 00:00:48]} Nge7 {[%clk 00:04:43]} {[%emt 00:00:11]} 8. b4 {[%clk
00:04:23]} O-O {[%clk 00:04:38]} {[%emt 00:00:07]} 9. d3 {[%clk 00:04:23]}
{[%emt 00:00:04]} d5 {[%clk 00:04:16]} {[%emt 00:00:26]} 10. Nbd2 {[%clk
00:03:55]} {[%emt 00:00:31]} cxb4 {[%clk 00:03:59]} {[%emt 00:00:20]} 11. axb4
{[%clk 00:03:56]} {[%emt 00:00:01]} Qc7 {[%clk 00:03:59]} {[%emt 00:00:03]} 12.
b5 {[%clk 00:03:49]} {[%emt 00:00:11]} Na5 {[%clk 00:03:50]} {[%emt 00:00:11]}
13. Ba3 {[%clk 00:03:51]} dxe4 {[%clk 00:03:43]} {[%emt 00:00:10]} 14. Nxe4
{[%clk 00:03:42]} {[%emt 00:00:12]} Rd8 {[%clk 00:03:45]} {[%emt 00:00:02]} 15.
Bb4 {[%clk 00:03:19]} {[%emt 00:00:26]} b6 {[%clk 00:03:37]} {[%emt 00:00:10]}
16. Bxa5 {[%clk 00:02:01]} {[%emt 00:01:21]} bxa5 17. Bb3 Bb7 {[%clk 00:03:23]}
{[%emt 00:00:18]} 18. Nfg5 {[%clk 00:01:55]} {[%emt 00:00:12]} Nd5 {[%clk
00:03:22]} {[%emt 00:00:04]} 19. c4 {[%clk 00:01:50]} {[%emt 00:00:08]} Nf4
{[%clk 00:02:38]} {[%emt 00:00:46]} 20. c5 {[%clk 00:01:53]} {[%emt 00:00:02]}
Bd5 {[%clk 00:02:14]} {[%emt 00:00:26]} 21. g3 {[%clk 00:01:40]} {[%emt
00:00:16]} Nh3+ {[%clk 00:01:14]} {[%emt 00:01:03]} 22. Nxh3 {[%clk 00:01:20]}
{[%emt 00:00:23]} Bxe4 {[%clk 00:01:16]} {[%emt 00:00:01]} 23. Ng5 {[%clk
00:01:22]} Bd5 {[%clk 00:01:13]} {[%emt 00:00:06]} 24. Bxd5 {[%clk 00:00:16]}
{[%emt 00:01:10]} Rxd5 {[%clk 00:01:15]} {[%emt 00:00:01]} 25. Qf3 {[%clk
00:00:19]} Rad8 {[%clk 00:01:10]} {[%emt 00:00:08]} 26. c6 {[%clk 00:00:05]}
{[%emt 00:00:17]} h6 {[%clk 00:00:52]} {[%emt 00:00:21]} 27. Ne4 {[%clk
00:00:07]} {[%emt 00:00:02]} f5 {[%clk 00:00:54]} 28. Rfb1 {[%emt 00:00:06]}
0-1

[Event "7° Rencontres Internationales des Echecs Francophones"]
[Site "PARIS, France"]
[Date "2019.08.10"]
[Round "10.6"]
[White "Vedmediuc, Serghei"]
[Black "Le Quang, Kim"]
[Result "1-0"]
[TimeControl "90'+30' + 30seconds/move"]
[WhiteElo "2469"]
[BlackElo "2150"]

1. e4 {[%clk 00:05:05]} c5 {[%clk 00:05:05]} {[%emt 00:00:05]} 2. Nf3 {[%clk
00:05:07]} d6 {[%clk 00:05:07]} 3. d4 {[%clk 00:05:09]} cxd4 {[%clk 00:05:09]}
4. Nxd4 {[%clk 00:05:11]} Nf6 {[%clk 00:05:11]} 5. Nc3 {[%clk 00:05:12]} a6
{[%clk 00:05:06]} {[%emt 00:00:08]} 6. f3 {[%clk 00:05:14]} e5 {[%clk
00:05:05]} {[%emt 00:00:05]} 7. Nb3 {[%clk 00:05:16]} Be7 {[%clk 00:05:07]}
{[%emt 00:00:01]} 8. Be3 {[%clk 00:05:17]} Be6 {[%clk 00:05:05]} {[%emt
00:00:06]} 9. Qd2 {[%clk 00:05:19]} {[%emt 00:00:01]} O-O {[%clk 00:05:06]}
{[%emt 00:00:02]} 10. O-O-O {[%clk 00:05:20]} {[%emt 00:00:02]} a5 {[%clk
00:05:08]} {[%emt 00:00:02]} 11. a4 {[%clk 00:05:21]} Nc6 {[%clk 00:05:10]}
{[%emt 00:00:02]} 12. g4 {[%clk 00:05:22]} {[%emt 00:00:01]} Nb4 {[%clk
00:05:05]} {[%emt 00:00:08]} 13. g5 {[%clk 00:05:23]} {[%emt 00:00:02]} Nh5
{[%clk 00:05:07]} {[%emt 00:00:01]} 14. Kb1 {[%clk 00:05:23]} {[%emt 00:00:03]}
Rc8 {[%clk 00:05:04]} {[%emt 00:00:06]} 15. Rg1 {[%clk 00:05:18]} {[%emt
00:00:08]} g6 {[%clk 00:05:00]} {[%emt 00:00:07]} 16. Bb5 {[%clk 00:05:19]}
{[%emt 00:00:02]} Qc7 {[%clk 00:04:51]} {[%emt 00:00:12]} 17. Qf2 {[%clk
00:05:18]} {[%emt 00:00:04]} Nf4 {[%clk 00:04:48]} {[%emt 00:00:06]} 18. Bxf4
{[%clk 00:05:16]} {[%emt 00:00:05]} exf4 {[%clk 00:04:50]} {[%emt 00:00:01]} 19.
h4 {[%clk 00:05:12]} {[%emt 00:00:07]} Rfd8 {[%clk 00:03:40]} {[%emt 00:01:13]}
20. Nd5 {[%clk 00:05:14]} {[%emt 00:00:02]} Bxd5 {[%clk 00:03:33]} {[%emt
00:00:10]} 21. exd5 {[%clk 00:05:16]} Qxc2+ {[%clk 00:02:42]} {[%emt 00:00:54]}
22. Qxc2 {[%clk 00:05:17]} {[%emt 00:00:01]} Rxc2 {[%clk 00:02:44]} 23. Nxa5
{[%clk 00:05:18]} {[%emt 00:00:02]} Rh2 {[%clk 00:01:05]} {[%emt 00:01:42]} 24.
Rd4 {[%clk 00:05:14]} {[%emt 00:00:07]} Na6 {[%clk 00:00:32]} {[%emt 00:00:36]}
25. Nxb7 {[%clk 00:05:13]} {[%emt 00:00:03]} Ra8 {[%clk 00:00:34]} {[%emt
00:00:02]} 26. Rxf4 {[%clk 00:05:08]} {[%emt 00:00:08]} Bf8 {[%clk 00:00:23]}
{[%emt 00:00:13]} 27. Rc1 {[%clk 00:04:40]} {[%emt 00:00:31]} Bg7 {[%clk
00:00:08]} {[%emt 00:00:18]} 28. Rc2 {[%clk 00:04:42]} Rh1+ {[%clk 00:00:09]}
{[%emt 00:00:02]} 29. Ka2 {[%clk 00:04:44]} Be5 {[%clk 00:00:11]} {[%emt
00:00:01]} 30. Re4 {[%clk 00:04:40]} {[%emt 00:00:07]} Ra7 {[%clk 00:00:10]}
{[%emt 00:00:05]} 31. Nd8 {[%clk 00:04:24]} {[%emt 00:00:19]} Ra8 {[%clk
00:00:05]} {[%emt 00:00:08]} 32. Nc6 {[%clk 00:04:22]} {[%emt 00:00:07]} Bg3
{[%clk 00:00:00]} {[%emt 00:00:02]} 33. Bxa6 {[%clk 00:04:22]} {[%emt
00:00:13]} Rxa6 {[%clk 00:00:00]} {[%emt 00:00:01]} 34. a5 {[%clk 00:04:22]}
1-0

[Event "7° Rencontres Internationales des Echecs Francophones"]
[Site "PARIS, France"]
[Date "2019.08.10"]
[Round "10.4"]
[White "Le Roux, Jean-Pierre"]
[Black "Moussard, Jules"]
[Result "1/2-1/2"]
[TimeControl "90'+30' + 30seconds/move"]
[WhiteElo "2535"]
[BlackElo "2613"]

1. d4 {[%clk 00:05:05]} {[%emt 00:03:36]} f5 {[%clk 00:05:05]} 2. Nf3 {[%clk
00:05:03]} {[%emt 00:00:05]} Nf6 {[%clk 00:05:07]} 3. g3 {[%clk 00:05:00]}
{[%emt 00:00:05]} g6 {[%clk 00:05:09]} 4. c3 {[%clk 00:04:56]} {[%emt
00:00:08]} Bg7 {[%clk 00:05:06]} {[%emt 00:00:06]} 5. Qb3 {[%clk 00:04:58]}
{[%emt 00:00:02]} e6 {[%clk 00:04:56]} {[%emt 00:00:12]} 6. Bg2 {[%clk
00:04:57]} {[%emt 00:00:04]} O-O {[%clk 00:04:54]} {[%emt 00:00:05]} 7. O-O
{[%clk 00:04:55]} {[%emt 00:00:04]} c6 {[%clk 00:04:46]} {[%emt 00:00:12]} 8.
c4 {[%clk 00:04:39]} {[%emt 00:00:20]} d6 {[%clk 00:04:40]} {[%emt 00:00:08]} 9.
Nc3 {[%clk 00:04:18]} {[%emt 00:00:24]} Nbd7 {[%clk 00:04:28]} {[%emt
00:00:15]} 10. Bf4 {[%clk 00:04:08]} {[%emt 00:00:13]} Qe7 {[%clk 00:04:21]}
{[%emt 00:00:11]} 11. Qa3 {[%clk 00:04:05]} {[%emt 00:00:06]} Ne8 {[%clk
00:04:22]} {[%emt 00:00:01]} 12. e4 {[%emt 00:00:55]} e5 13. Bg5 {[%clk
00:03:00]} {[%emt 00:00:53]} Qe6 {[%clk 00:03:40]} {[%emt 00:00:11]} 14. exf5
{[%clk 00:02:32]} {[%emt 00:00:32]} gxf5 {[%clk 00:03:38]} {[%emt 00:00:04]} 15.
d5 {[%clk 00:01:52]} {[%emt 00:00:43]} Qf7 {[%clk 00:03:22]} {[%emt 00:00:19]}
16. dxc6 {[%clk 00:01:50]} {[%emt 00:00:05]} bxc6 {[%clk 00:03:24]} 17. Nh4
{[%clk 00:01:43]} {[%emt 00:00:10]} Bb7 {[%clk 00:03:13]} {[%emt 00:00:15]} 18.
Rad1 {[%clk 00:01:33]} {[%emt 00:00:13]} Kh8 {[%clk 00:03:08]} {[%emt
00:00:07]} 19. Nb5 {[%clk 00:01:30]} {[%emt 00:00:06]} Nb6 {[%clk 00:02:49]}
{[%emt 00:00:22]} 20. Nxd6 Nxd6 {[%clk 00:02:51]} 21. Qxd6 {[%clk 00:01:25]}
{[%emt 00:00:04]} Nxc4 {[%clk 00:02:53]} 22. Qc5 {[%clk 00:00:22]} {[%emt
00:01:06]} Nxb2 {[%clk 00:02:48]} {[%emt 00:00:08]} 23. Rb1 {[%clk 00:00:24]}
{[%emt 00:00:02]} Nd3 {[%clk 00:02:48]} {[%emt 00:00:03]} 24. Qe7 {[%clk
00:00:25]} {[%emt 00:00:03]} Rab8 {[%clk 00:02:41]} {[%emt 00:00:09]} 25. Bh3
{[%clk 00:00:28]} f4 {[%clk 00:02:07]} {[%emt 00:00:36]} 26. Be6 {[%clk
00:00:24]} {[%emt 00:00:07]} Qxe7 {[%clk 00:01:55]} {[%emt 00:00:16]} 27. Bxe7
{[%clk 00:00:26]} Rfe8 {[%clk 00:01:57]} {[%emt 00:00:01]} 28. Nf5 {[%clk
00:00:19]} {[%emt 00:00:09]} Ba6 {[%clk 00:01:40]} {[%emt 00:00:20]} 29. Bd7
{[%clk 00:00:17]} {[%emt 00:00:06]} Rg8 {[%clk 00:01:36]} {[%emt 00:00:06]} 30.
Be6 {[%clk 00:00:18]} {[%emt 00:00:02]} Rge8 {[%clk 00:01:35]} {[%emt
00:00:04]} 31. Bd7 {[%clk 00:00:20]} Rg8 {[%clk 00:01:18]} {[%emt 00:00:19]} 32.
Be6 {[%clk 00:00:21]} {[%emt 00:00:02]} Rge8 {[%clk 00:00:48]} {[%emt
00:00:33]} 33. Bd7 {[%clk 00:00:19]} {[%emt 00:00:06]} Rg8 {[%clk 00:00:50]} 34.
Be6 {[%clk 00:00:21]} 1/2-1/2

[Event "7° Rencontres Internationales des Echecs Francophones"]
[Site "PARIS, France"]
[Date "2019.08.10"]
[Round "10.9"]
[White "Berend, Elvira"]
[Black "Gerber, Richard"]
[Result "1/2-1/2"]
[TimeControl "90'+30' + 30seconds/move"]
[WhiteElo "2297"]
[BlackElo "2398"]

1. e4 {[%clk 00:05:05]} c5 {[%clk 00:05:05]} {[%emt 00:00:04]} 2. Nf3 {[%clk
00:05:06]} {[%emt 00:00:02]} e6 {[%clk 00:05:05]} 3. d4 {[%clk 00:05:07]}
{[%emt 00:00:01]} cxd4 {[%clk 00:05:07]} {[%emt 00:00:02]} 4. Nxd4 {[%clk
00:05:09]} {[%emt 00:00:01]} Nc6 {[%clk 00:05:09]} 5. Nc3 {[%clk 00:05:09]}
{[%emt 00:00:04]} Qc7 {[%clk 00:05:10]} {[%emt 00:00:02]} 6. g3 {[%clk
00:04:53]} {[%emt 00:00:19]} d6 {[%clk 00:05:00]} {[%emt 00:00:14]} 7. Bg2
{[%clk 00:04:52]} {[%emt 00:00:03]} a6 {[%clk 00:04:51]} {[%emt 00:00:13]} 8.
O-O {[%clk 00:04:52]} {[%emt 00:00:02]} Bd7 {[%clk 00:04:53]} {[%emt 00:00:01]}
9. a4 {[%clk 00:04:46]} {[%emt 00:00:09]} Nf6 {[%clk 00:04:51]} {[%emt
00:00:04]} 10. Nb3 {[%clk 00:04:29]} {[%emt 00:00:21]} Be7 {[%clk 00:04:15]}
{[%emt 00:00:38]} 11. a5 {[%clk 00:04:30]} {[%emt 00:00:03]} O-O {[%clk
00:03:40]} {[%emt 00:00:38]} 12. Be3 {[%clk 00:04:32]} Ne5 {[%clk 00:03:28]}
{[%emt 00:00:16]} 13. Bb6 {[%clk 00:04:31]} {[%emt 00:00:05]} Qb8 {[%clk
00:03:26]} {[%emt 00:00:04]} 14. Nd2 {[%clk 00:04:23]} {[%emt 00:00:10]} Bc6
{[%clk 00:03:18]} {[%emt 00:00:11]} 15. Qe2 {[%clk 00:04:23]} {[%emt 00:00:02]}
Ned7 {[%clk 00:03:16]} {[%emt 00:00:06]} 16. Be3 {[%clk 00:04:09]} {[%emt
00:00:17]} Qc7 {[%clk 00:03:07]} {[%emt 00:00:12]} 17. Nc4 {[%clk 00:03:57]}
{[%emt 00:00:15]} Nxe4 {[%clk 00:02:41]} {[%emt 00:00:29]} 18. Nxe4 {[%clk
00:03:54]} {[%emt 00:00:06]} Bxe4 {[%clk 00:02:14]} {[%emt 00:00:30]} 19. Bxe4
{[%clk 00:03:33]} {[%emt 00:00:24]} d5 {[%clk 00:02:16]} {[%emt 00:00:02]} 20.
Nb6 {[%clk 00:03:25]} {[%emt 00:00:10]} dxe4 {[%clk 00:02:18]} {[%emt
00:00:03]} 21. Nxa8 {[%clk 00:03:26]} {[%emt 00:00:01]} Rxa8 {[%clk 00:02:20]}
22. Rfd1 {[%clk 00:03:04]} {[%emt 00:00:24]} Rc8 {[%clk 00:02:13]} {[%emt
00:00:10]} 23. Bf4 {[%clk 00:02:56]} {[%emt 00:00:10]} Qc6 {[%clk 00:02:11]}
{[%emt 00:00:06]} 24. c4 {[%clk 00:02:52]} {[%emt 00:00:07]} g5 {[%clk
00:01:36]} {[%emt 00:00:38]} 25. Qd2 {[%clk 00:02:07]} {[%emt 00:00:49]} Rd8
{[%clk 00:01:06]} {[%emt 00:00:32]} 26. Bxg5 {[%clk 00:02:00]} {[%emt
00:00:09]} Ne5 {[%clk 00:01:07]} {[%emt 00:00:02]} 27. Qxd8+ {[%clk 00:01:55]}
{[%emt 00:00:08]} Bxd8 {[%clk 00:01:09]} {[%emt 00:00:02]} 28. Rxd8+ {[%clk
00:01:55]} {[%emt 00:00:02]} Kg7 {[%clk 00:01:12]} 29. Be3 {[%clk 00:01:48]}
{[%emt 00:00:09]} Nf3+ {[%clk 00:01:09]} {[%emt 00:00:05]} 30. Kg2 {[%clk
00:01:49]} {[%emt 00:00:03]} Qxc4 {[%clk 00:00:52]} {[%emt 00:00:20]} 31. Rad1
{[%clk 00:01:51]} Qe2 {[%clk 00:00:49]} {[%emt 00:00:06]} 32. R8d7 {[%clk
00:01:18]} {[%emt 00:00:36]} Kg6 {[%clk 00:00:42]} {[%emt 00:00:10]} 33. b4
{[%clk 00:01:07]} {[%emt 00:00:14]} h5 {[%clk 00:00:39]} {[%emt 00:00:06]} 34.
h4 {[%clk 00:01:10]} Ne5 {[%clk 00:00:24]} {[%emt 00:00:19]} 35. Rd8 {[%clk
00:01:02]} {[%emt 00:00:11]} Qf3+ {[%clk 00:00:25]} {[%emt 00:00:01]} 36. Kg1
{[%clk 00:01:04]} {[%emt 00:00:01]} Nd3 {[%clk 00:00:23]} {[%emt 00:00:05]} 37.
R1xd3 {[%clk 00:00:35]} {[%emt 00:00:31]} exd3 {[%clk 00:00:24]} {[%emt
00:00:02]} 38. Rxd3 {[%clk 00:00:37]} e5 {[%clk 00:00:17]} {[%emt 00:00:11]} 39.
Rd6+ {[%clk 00:00:39]} {[%emt 00:00:01]} f6 {[%clk 00:00:17]} {[%emt 00:00:02]}
40. Bg5 {[%clk 00:00:38]} {[%emt 00:00:04]} Qe2 {[%clk 00:00:09]} {[%emt
00:00:10]} 41. Rxf6+ {[%clk 00:00:38]} {[%emt 00:00:04]} Qe4 {[%clk 00:00:10]}
42. Rb6+ {[%clk 00:00:40]} {[%emt 00:00:03]} Kg7 {[%clk 00:00:09]} 43. Kh2
{[%clk 00:00:41]} {[%emt 00:00:09]} Qe2 {[%clk 00:00:14]} {[%emt 00:00:01]} 44.
Be3 {[%clk 00:00:42]} {[%emt 00:00:01]} Qf3 {[%clk 00:00:15]} {[%emt 00:00:02]}
45. Rd6 {[%clk 00:00:40]} {[%emt 00:00:05]} Kf7 {[%clk 00:00:16]} {[%emt
00:00:03]} 46. Rd7+ {[%clk 00:00:40]} {[%emt 00:00:03]} Ke6 {[%clk 00:00:18]}
47. Rd2 {[%clk 00:00:38]} {[%emt 00:00:04]} Kf5 {[%clk 00:00:20]} {[%emt
00:00:02]} 48. Rd8 {[%clk 00:00:38]} {[%emt 00:00:02]} Qc6 {[%clk 00:00:18]}
{[%emt 00:00:04]} 49. Rd2 {[%clk 00:00:37]} {[%emt 00:00:04]} Ke4 {[%clk
00:00:20]} {[%emt 00:00:01]} 50. Bc5 {[%clk 00:00:39]} {[%emt 00:00:01]} Kf3
{[%clk 00:00:19]} {[%emt 00:00:04]} 51. Rd3+ {[%clk 00:00:40]} {[%emt
00:00:02]} Kg4 {[%clk 00:00:18]} {[%emt 00:00:04]} 52. Re3 {[%clk 00:00:40]}
{[%emt 00:00:03]} Qd5 {[%clk 00:00:19]} {[%emt 00:00:02]} 53. Re1 {[%clk
00:00:38]} {[%emt 00:00:05]} e4 {[%clk 00:00:20]} {[%emt 00:00:03]} 54. Re3
{[%clk 00:00:37]} {[%emt 00:00:03]} Kf5 {[%clk 00:00:20]} {[%emt 00:00:03]} 55.
Re1 {[%clk 00:00:32]} {[%emt 00:00:09]} Qd2 {[%clk 00:00:21]} {[%emt 00:00:02]}
56. Rb1 {[%clk 00:00:25]} {[%emt 00:00:09]} Kg4 {[%clk 00:00:20]} {[%emt
00:00:04]} 57. Kg2 {[%clk 00:00:19]} {[%emt 00:00:09]} Qd3 {[%clk 00:00:19]}
{[%emt 00:00:04]} 58. Re1 {[%clk 00:00:21]} Qf3+ {[%clk 00:00:20]} {[%emt
00:00:04]} 59. Kg1 {[%clk 00:00:23]} Kh3 {[%clk 00:00:19]} {[%emt 00:00:04]} 60.
Kf1 {[%clk 00:00:24]} {[%emt 00:00:02]} Qd3+ {[%clk 00:00:11]} {[%emt
00:00:11]} 61. Kg1 {[%clk 00:00:23]} {[%emt 00:00:04]} Qf3 {[%emt 00:00:03]} 62.
Kf1 Qd3+ {[%clk 00:00:11]} {[%emt 00:00:03]} 63. Kg1 {[%clk 00:00:28]} Qf3
{[%clk 00:00:10]} {[%emt 00:00:04]} 64. Kf1 {[%clk 00:00:30]} Qd3+ {[%clk
00:00:08]} {[%emt 00:00:05]} 65. Kg1 1/2-1/2